[Event "Late-Titled-Tuesday-Blitz-July-09-2024"]
[Site "Chess.com"]
[Date "2024.07.09"]
[Round "8"]
[White "MetiForce"]
[Black "champ2005"]
[Result "0-1"]
[WhiteElo "2915"]
[BlackElo "3055"]
[TimeControl "180+1"]
[EndTime "15:28:33 PDT"]
[Termination "champ2005 won by checkmate"]

1. e4 {[%clk 0:03:00.9]} 1... c6 {[%clk 0:02:58.1]} 2. d4 {[%clk 0:03:00.4]}
2... d5 {[%clk 0:02:57.8]} 3. e5 {[%clk 0:03:00.9]} 3... Bf5 {[%clk 0:02:57.5]}
4. Nf3 {[%clk 0:03:01.1]} 4... e6 {[%clk 0:02:57.8]} 5. Be2 {[%clk 0:03:01.2]}
5... Nd7 {[%clk 0:02:57]} 6. O-O {[%clk 0:03:00.9]} 6... h6 {[%clk 0:02:57.4]}
7. a4 {[%clk 0:02:55.2]} 7... Ne7 {[%clk 0:02:55.2]} 8. a5 {[%clk 0:02:45]} 8...
c5 {[%clk 0:02:55.3]} 9. c3 {[%clk 0:02:42.2]} 9... Nc6 {[%clk 0:02:49.7]} 10.
a6 {[%clk 0:02:40.1]} 10... c4 {[%clk 0:02:49.6]} 11. axb7 {[%clk 0:02:31.6]}
11... Rb8 {[%clk 0:02:49.7]} 12. b3 {[%clk 0:02:29.3]} 12... Rxb7 {[%clk
0:02:48]} 13. Nbd2 {[%clk 0:02:29.1]} 13... cxb3 {[%clk 0:02:47.8]} 14. Nxb3
{[%clk 0:02:29.6]} 14... Be7 {[%clk 0:02:46.9]} 15. Ba3 {[%clk 0:02:16.3]} 15...
O-O {[%clk 0:02:45.7]} 16. Nfd2 {[%clk 0:02:13]} 16... Rc7 {[%clk 0:02:41.8]}
17. Bd6 {[%clk 0:02:04.6]} 17... Bxd6 {[%clk 0:02:38.6]} 18. exd6 {[%clk
0:02:04.7]} 18... Rc8 {[%clk 0:02:39.5]} 19. Nc5 {[%clk 0:02:00.3]} 19... Nb6
{[%clk 0:02:34.3]} 20. Ba6 {[%clk 0:01:57.5]} 20... Rb8 {[%clk 0:02:34.3]} 21.
Nb7 {[%clk 0:01:57.1]} 21... Qd7 {[%clk 0:02:34]} 22. Nb3 {[%clk 0:01:57.2]}
22... Nd8 {[%clk 0:02:17]} 23. N3c5 {[%clk 0:01:47.3]} 23... Qc6 {[%clk
0:02:16.7]} 24. Nxd8 {[%clk 0:01:28.6]} 24... Rfxd8 {[%clk 0:02:17.6]} 25. Bd3
{[%clk 0:01:28.4]} 25... Bxd3 {[%clk 0:02:13.8]} 26. Qxd3 {[%clk 0:01:27.6]}
26... Ra8 {[%clk 0:02:13]} 27. Ra6 {[%clk 0:01:22.4]} 27... Rxd6 {[%clk
0:02:11.2]} 28. Rfa1 {[%clk 0:01:22.6]} 28... Qc7 {[%clk 0:02:11.2]} 29. Qg3
{[%clk 0:01:21.4]} 29... Nc4 {[%clk 0:02:05.6]} 30. Rb1 {[%clk 0:01:07]} 30...
Rb8 {[%clk 0:01:38.4]} 31. Rc1 {[%clk 0:00:51.2]} 31... Rc8 {[%clk 0:01:34.4]}
32. Ra2 {[%clk 0:00:41.4]} 32... a5 {[%clk 0:01:25.8]} 33. h4 {[%clk 0:00:40.4]}
33... Rb6 {[%clk 0:01:25.2]} 34. Qf3 {[%clk 0:00:36.7]} 34... Rcb8 {[%clk
0:01:23.6]} 35. g3 {[%clk 0:00:34.2]} 35... Qc6 {[%clk 0:01:22.9]} 36. h5 {[%clk
0:00:31.1]} 36... Rb1 {[%clk 0:01:19.8]} 37. Rxb1 {[%clk 0:00:29]} 37... Rxb1+
{[%clk 0:01:20.7]} 38. Kg2 {[%clk 0:00:29.8]} 38... Qb5 {[%clk 0:01:18.7]} 39.
Qe2 {[%clk 0:00:27.8]} 39... Rc1 {[%clk 0:01:09.6]} 40. Nxe6 {[%clk 0:00:26.8]}
40... Qb1 {[%clk 0:00:45.6]} 41. Nf4 {[%clk 0:00:18.4]} 41... Rg1+ {[%clk
0:00:38.1]} 42. Kf3 {[%clk 0:00:18.8]} 42... Re1 {[%clk 0:00:39]} 43. Qc2 {[%clk
0:00:17.2]} 43... Qb5 {[%clk 0:00:21.4]} 44. Qf5 {[%clk 0:00:15.8]} 44... Nb6
{[%clk 0:00:19.4]} 45. Kg4 {[%clk 0:00:11.2]} 45... a4 {[%clk 0:00:17.3]} 46.
Qd3 {[%clk 0:00:09.1]} 46... Qd7+ {[%clk 0:00:17.4]} 47. Kf3 {[%clk 0:00:08.5]}
47... Nc4 {[%clk 0:00:11.6]} 48. Qc2 {[%clk 0:00:06.3]} 48... a3 {[%clk
0:00:11.5]} 49. Qb3 {[%clk 0:00:06.5]} 49... Qe7 {[%clk 0:00:09.8]} 50. Qb8+
{[%clk 0:00:04.7]} 50... Kh7 {[%clk 0:00:09.4]} 51. Kg4 {[%clk 0:00:05.1]} 51...
Qe4 {[%clk 0:00:06.9]} 52. Qc8 {[%clk 0:00:04.4]} 52... Nd6 {[%clk 0:00:07.2]}
53. Qd7 {[%clk 0:00:04.7]} 53... f5+ {[%clk 0:00:07]} 54. Kh4 {[%clk 0:00:01.9]}
54... Rh1# {[%clk 0:00:07.3]} 0-1

[Event "Late-Titled-Tuesday-Blitz-July-09-2024"]
[Site "Chess.com"]
[Date "2024.07.09"]
[Round "8"]
[White "andrejljepic"]
[Black "AcostaPablo"]
[Result "0-1"]
[WhiteElo "2491"]
[BlackElo "2715"]
[TimeControl "180+1"]
[EndTime "15:28:33 PDT"]
[Termination "AcostaPablo won by resignation"]

1. e4 {[%clk 0:03:00.9]} 1... e6 {[%clk 0:02:59.4]} 2. d4 {[%clk 0:02:57.5]}
2... d5 {[%clk 0:02:59.8]} 3. e5 {[%clk 0:02:57.6]} 3... c5 {[%clk 0:02:59.4]}
4. c3 {[%clk 0:02:57.8]} 4... Nc6 {[%clk 0:02:59.8]} 5. Nf3 {[%clk 0:02:57.9]}
5... Qb6 {[%clk 0:03:00.4]} 6. a3 {[%clk 0:02:57.6]} 6... c4 {[%clk 0:03:00]} 7.
g3 {[%clk 0:02:57.8]} 7... Na5 {[%clk 0:02:59.4]} 8. Nbd2 {[%clk 0:02:58]} 8...
Bd7 {[%clk 0:02:59.6]} 9. h4 {[%clk 0:02:57.6]} 9... Ne7 {[%clk 0:02:59.3]} 10.
Bh3 {[%clk 0:02:57.8]} 10... Qc7 {[%clk 0:02:57.8]} 11. O-O {[%clk 0:02:57.7]}
11... Nc8 {[%clk 0:02:57.8]} 12. Rb1 {[%clk 0:02:55.8]} 12... Nb6 {[%clk
0:02:57.5]} 13. Ne1 {[%clk 0:02:55.2]} 13... O-O-O {[%clk 0:02:55]} 14. f4
{[%clk 0:02:54.4]} 14... f6 {[%clk 0:02:48.7]} 15. Qe2 {[%clk 0:02:48.5]} 15...
f5 {[%clk 0:02:46.2]} 16. Ndf3 {[%clk 0:02:35.8]} 16... Be7 {[%clk 0:02:44.7]}
17. Be3 {[%clk 0:02:27.8]} 17... h6 {[%clk 0:02:40.9]} 18. h5 {[%clk 0:02:15.6]}
18... g6 {[%clk 0:02:32.1]} 19. hxg6 {[%clk 0:02:09.4]} 19... Rdg8 {[%clk
0:02:32.1]} 20. Kf2 {[%clk 0:01:58.1]} 20... Rxg6 {[%clk 0:02:28.6]} 21. Rg1
{[%clk 0:01:58.3]} 21... Qd8 {[%clk 0:02:23.3]} 22. Ng2 {[%clk 0:01:43.3]} 22...
Na4 {[%clk 0:02:19]} 23. Ngh4 {[%clk 0:01:38.1]} 23... Rg7 {[%clk 0:02:18.1]}
24. Kf1 {[%clk 0:01:17.4]} 24... Rhg8 {[%clk 0:02:16.9]} 25. Bf2 {[%clk
0:01:17.7]} 25... Be8 {[%clk 0:02:16.3]} 26. Qe3 {[%clk 0:01:10.4]} 26... Bh5
{[%clk 0:02:12.3]} 27. Rg2 {[%clk 0:00:59.5]} 27... Bg4 {[%clk 0:02:09.8]} 28.
Bxg4 {[%clk 0:00:56.7]} 28... fxg4 {[%clk 0:02:07.8]} 29. Ng1 {[%clk 0:00:54.8]}
29... Bxh4 {[%clk 0:02:02.7]} 30. gxh4 {[%clk 0:00:55]} 30... Qf8 {[%clk
0:02:02.3]} 31. Ne2 {[%clk 0:00:39.1]} 31... Qf5 {[%clk 0:02:01.6]} 32. Rc1
{[%clk 0:00:33.6]} 32... Nb3 {[%clk 0:01:54.2]} 33. Ng3 {[%clk 0:00:32.9]} 33...
Qd3+ {[%clk 0:01:54.1]} 34. Qxd3 {[%clk 0:00:25.9]} 34... cxd3 {[%clk
0:01:54.7]} 35. Re1 {[%clk 0:00:22.1]} 35... d2 {[%clk 0:01:47.8]} 36. Rd1
{[%clk 0:00:22.5]} 36... Nxb2 {[%clk 0:01:47.7]} 37. Ke2 {[%clk 0:00:23.1]}
37... Nxd1 {[%clk 0:01:39.9]} 38. Kxd1 {[%clk 0:00:23.4]} 38... Rc7 {[%clk
0:01:40.5]} 39. Ne2 {[%clk 0:00:20]} 39... Nc1 {[%clk 0:01:39.9]} 40. Rg3 {[%clk
0:00:16.8]} 40... Rf8 {[%clk 0:01:35.8]} 41. Be3 {[%clk 0:00:17.1]} 41... Nxe2
{[%clk 0:01:34.5]} 42. Kxe2 {[%clk 0:00:16.1]} 42... h5 {[%clk 0:01:31.2]} 43.
Kxd2 {[%clk 0:00:14.5]} 43... Rc4 {[%clk 0:01:31.8]} 44. Rg1 {[%clk 0:00:13.9]}
44... Kd7 {[%clk 0:01:32.2]} 45. Rb1 {[%clk 0:00:14]} 45... b6 {[%clk
0:01:32.6]} 46. Kd3 {[%clk 0:00:12.3]} 46... Ke7 {[%clk 0:01:31.4]} 47. Ra1
{[%clk 0:00:10.7]} 47... Rfc8 {[%clk 0:01:31]} 48. Bd2 {[%clk 0:00:10.3]} 48...
Kf7 {[%clk 0:01:31.6]} 49. a4 {[%clk 0:00:10.7]} 49... Kg6 {[%clk 0:01:31.5]}
50. a5 {[%clk 0:00:11.2]} 50... b5 {[%clk 0:01:31.6]} 51. a6 {[%clk 0:00:11]}
51... R8c6 {[%clk 0:01:31.6]} 52. Rb1 {[%clk 0:00:07.9]} 52... Rb6 {[%clk
0:01:31.7]} 53. f5+ {[%clk 0:00:08]} 53... exf5 {[%clk 0:01:31.3]} 54. Re1
{[%clk 0:00:08.3]} 54... Kf7 {[%clk 0:01:30.9]} 55. Ke3 {[%clk 0:00:04.4]} 55...
Rxa6 {[%clk 0:01:28.5]} 56. Kf4 {[%clk 0:00:04.6]} 56... Ke6 {[%clk 0:01:29]}
57. Kg5 {[%clk 0:00:04]} 57... Ra2 {[%clk 0:01:29.6]} 58. Bf4 {[%clk 0:00:03.7]}
58... Rf2 {[%clk 0:01:28.4]} 59. Ra1 {[%clk 0:00:02.6]} 59... Ra4 {[%clk
0:01:28.6]} 60. Rb1 {[%clk 0:00:03.2]} 60... a6 {[%clk 0:01:29.2]} 61. Bc1
{[%clk 0:00:02.4]} 61... g3 {[%clk 0:01:28.6]} 62. Kxh5 {[%clk 0:00:02.7]} 62...
g2 {[%clk 0:01:28.7]} 63. Be3 {[%clk 0:00:03.2]} 63... Rf1 {[%clk 0:01:29.3]}
64. Rb2 {[%clk 0:00:03.7]} 64... g1=Q {[%clk 0:01:29.1]} 65. Bxg1 {[%clk
0:00:04]} 65... Rxg1 {[%clk 0:01:29.3]} 66. Kh6 {[%clk 0:00:04.3]} 66... Ra3
{[%clk 0:01:28.7]} 67. h5 {[%clk 0:00:04.4]} 67... Rxc3 {[%clk 0:01:29.4]} 68.
Kh7 {[%clk 0:00:04.5]} 68... Rh3 {[%clk 0:01:29]} 69. h6 {[%clk 0:00:03.9]}
69... Rgh1 {[%clk 0:01:29.5]} 70. Rc2 {[%clk 0:00:04.4]} 70... Rxh6+ {[%clk
0:01:29.9]} 71. Kg7 {[%clk 0:00:05.1]} 71... Rh7+ {[%clk 0:01:30.1]} 72. Kg8
{[%clk 0:00:05.7]} 72... Rh8+ {[%clk 0:01:22.6]} 73. Kg7 {[%clk 0:00:05.4]}
73... R8h7+ {[%clk 0:01:20]} 74. Kg6 {[%clk 0:00:03.5]} 74... R7h6+ {[%clk
0:01:18.8]} 75. Kg5 {[%clk 0:00:03.9]} 75... R1h5+ {[%clk 0:01:18.3]} 76. Kf4
{[%clk 0:00:03.6]} 76... b4 {[%clk 0:01:16.5]} 77. Rc6+ {[%clk 0:00:02.9]} 77...
Kd7 {[%clk 0:01:17.1]} 78. Rc5 {[%clk 0:00:03]} 78... b3 {[%clk 0:01:17.5]} 79.
Rxd5+ {[%clk 0:00:03.2]} 79... Kc7 {[%clk 0:01:17.7]} 80. Rc5+ {[%clk
0:00:03.4]} 80... Rc6 {[%clk 0:01:18.1]} 81. Ra5 {[%clk 0:00:01]} 81... b2
{[%clk 0:01:17.8]} 82. d5 {[%clk 0:00:01.6]} 82... b1=Q {[%clk 0:01:17.9]} 83.
d6+ {[%clk 0:00:02.3]} 83... Kd7 {[%clk 0:01:17.7]} 0-1

[Event "Late-Titled-Tuesday-Blitz-July-09-2024"]
[Site "Chess.com"]
[Date "2024.07.09"]
[Round "8"]
[White "Kirill_Klukin"]
[Black "SRob2003"]
[Result "1-0"]
[WhiteElo "2926"]
[BlackElo "2715"]
[TimeControl "180+1"]
[EndTime "15:28:35 PDT"]
[Termination "Kirill_Klukin won on time"]

1. d4 {[%clk 0:03:00.9]} 1... Nf6 {[%clk 0:02:59.9]} 2. Nf3 {[%clk 0:03:01.2]}
2... d5 {[%clk 0:03:00]} 3. c3 {[%clk 0:03:01.3]} 3... e6 {[%clk 0:03:00.7]} 4.
Nbd2 {[%clk 0:02:56.9]} 4... c5 {[%clk 0:03:00.7]} 5. e3 {[%clk 0:02:56.9]} 5...
Nc6 {[%clk 0:03:00.5]} 6. Bd3 {[%clk 0:02:57]} 6... Bd6 {[%clk 0:03:00.7]} 7.
O-O {[%clk 0:02:56.9]} 7... O-O {[%clk 0:03:00.2]} 8. dxc5 {[%clk 0:02:57]} 8...
Bxc5 {[%clk 0:03:01.1]} 9. b4 {[%clk 0:02:57.4]} 9... Bd6 {[%clk 0:02:52.6]} 10.
Bb2 {[%clk 0:02:57]} 10... Qc7 {[%clk 0:02:32.7]} 11. a3 {[%clk 0:02:52.4]}
11... Ne5 {[%clk 0:02:30.9]} 12. Nxe5 {[%clk 0:02:44.3]} 12... Bxe5 {[%clk
0:02:31.8]} 13. Nf3 {[%clk 0:02:44.9]} 13... Bd6 {[%clk 0:02:19.4]} 14. c4
{[%clk 0:02:16.8]} 14... dxc4 {[%clk 0:02:18.1]} 15. Bxc4 {[%clk 0:02:13.3]}
15... Bxh2+ {[%clk 0:02:08.8]} 16. Nxh2 {[%clk 0:02:13.4]} 16... Qxc4 {[%clk
0:02:09.7]} 17. Bxf6 {[%clk 0:02:13.6]} 17... gxf6 {[%clk 0:02:09.8]} 18. Qh5
{[%clk 0:02:12]} 18... e5 {[%clk 0:02:02.3]} 19. Rac1 {[%clk 0:02:10]} 19... Qe4
{[%clk 0:01:57.1]} 20. Rc7 {[%clk 0:01:56.6]} 20... Be6 {[%clk 0:01:52.9]} 21.
Qh6 {[%clk 0:01:51.9]} 21... Rac8 {[%clk 0:01:25]} 22. Rxc8 {[%clk 0:01:45.1]}
22... Rxc8 {[%clk 0:01:25.9]} 23. Qxf6 {[%clk 0:01:45.6]} 23... Qf5 {[%clk
0:01:25.8]} 24. Qh4 {[%clk 0:01:41.1]} 24... Rc4 {[%clk 0:00:56.7]} 25. Qg3+
{[%clk 0:01:36.3]} 25... Kf8 {[%clk 0:00:36.2]} 26. Rd1 {[%clk 0:01:33.3]} 26...
Rc8 {[%clk 0:00:33.5]} 27. Nf3 {[%clk 0:01:32.9]} 27... f6 {[%clk 0:00:28.7]}
28. Qh4 {[%clk 0:01:20.5]} 28... Kg7 {[%clk 0:00:10.7]} 29. Kh2 {[%clk
0:01:12.1]} 29... Rc4 {[%clk 0:00:08]} 30. Qh3 {[%clk 0:00:54.8]} 30... Qxh3+
{[%clk 0:00:08.1]} 31. gxh3 {[%clk 0:00:55.7]} 31... Rc2 {[%clk 0:00:08.6]} 32.
Kg3 {[%clk 0:00:55.6]} 32... Ra2 {[%clk 0:00:08.7]} 33. Rd6 {[%clk 0:00:55.6]}
33... Kf7 {[%clk 0:00:09]} 34. Nd2 {[%clk 0:00:38.7]} 34... Rxa3 {[%clk
0:00:09.2]} 35. Ne4 {[%clk 0:00:38.9]} 35... b6 {[%clk 0:00:07.6]} 36. Rc6
{[%clk 0:00:39.2]} 36... Bd5 {[%clk 0:00:06.6]} 37. Rc7+ {[%clk 0:00:39.7]}
37... Kg6 {[%clk 0:00:04.4]} 38. Nd6 {[%clk 0:00:39.8]} 38... a5 {[%clk
0:00:03.4]} 39. b5 {[%clk 0:00:30.9]} 39... Ra1 {[%clk 0:00:03.3]} 40. e4 {[%clk
0:00:30.5]} 40... Ra3+ {[%clk 0:00:03.5]} 41. f3 {[%clk 0:00:30.3]} 41... Be6
{[%clk 0:00:04]} 42. Rc6 {[%clk 0:00:29.1]} 42... a4 {[%clk 0:00:03.6]} 43. Rxb6
{[%clk 0:00:29.3]} 43... Rb3 {[%clk 0:00:03.9]} 44. Ne8 {[%clk 0:00:27.3]} 44...
Bd7 {[%clk 0:00:03.7]} 45. Nc7 {[%clk 0:00:24.5]} 45... a3 {[%clk 0:00:03.1]}
46. Nd5 {[%clk 0:00:23.4]} 46... a2 {[%clk 0:00:02.9]} 47. Rxf6+ {[%clk
0:00:23]} 47... Kg7 {[%clk 0:00:03]} 48. Ra6 {[%clk 0:00:23.9]} 48... Rb2 {[%clk
0:00:03.1]} 49. b6 {[%clk 0:00:22.6]} 49... Bc6 {[%clk 0:00:02.2]} 50. Ra7+
{[%clk 0:00:22.9]} 50... Kg6 {[%clk 0:00:01.8]} 51. Ne7+ {[%clk 0:00:23.4]}
51... Kf6 {[%clk 0:00:01.7]} 52. Nxc6 {[%clk 0:00:24.3]} 52... Rxb6 {[%clk
0:00:02]} 53. Nd8 {[%clk 0:00:18.3]} 53... Rd6 {[%clk 0:00:01.9]} 54. Nb7 {[%clk
0:00:16.1]} 54... Rb6 {[%clk 0:00:01.4]} 55. Nc5 {[%clk 0:00:16.1]} 55... Rb2
{[%clk 0:00:01.6]} 56. Nd3 {[%clk 0:00:16.2]} 56... Rd2 {[%clk 0:00:01.5]} 57.
Ra6+ {[%clk 0:00:16.3]} 57... Kg5 {[%clk 0:00:01.4]} 58. h4+ {[%clk 0:00:16]}
58... Kh5 {[%clk 0:00:01.7]} 59. Nxe5 {[%clk 0:00:16.8]} 1-0

[Event "Late-Titled-Tuesday-Blitz-July-09-2024"]
[Site "Chess.com"]
[Date "2024.07.09"]
[Round "8"]
[White "AmbartsumianTyhran2012"]
[Black "dropstoneDP"]
[Result "1/2-1/2"]
[WhiteElo "2628"]
[BlackElo "3011"]
[TimeControl "180+1"]
[EndTime "15:28:36 PDT"]
[Termination "Game drawn - insufficient material"]

1. e4 {[%clk 0:03:00.9]} 1... e5 {[%clk 0:02:54.7]} 2. Nf3 {[%clk 0:03:00.4]}
2... Nf6 {[%clk 0:02:53.1]} 3. Nc3 {[%clk 0:02:59.7]} 3... Nc6 {[%clk
0:02:53.1]} 4. d4 {[%clk 0:02:58.6]} 4... exd4 {[%clk 0:02:54]} 5. Nxd4 {[%clk
0:02:58.3]} 5... Bb4 {[%clk 0:02:53.9]} 6. Nxc6 {[%clk 0:02:57.1]} 6... bxc6
{[%clk 0:02:54.8]} 7. Bd3 {[%clk 0:02:57.5]} 7... O-O {[%clk 0:02:55.3]} 8. O-O
{[%clk 0:02:57]} 8... d5 {[%clk 0:02:55.6]} 9. exd5 {[%clk 0:02:57.2]} 9... cxd5
{[%clk 0:02:55.8]} 10. h3 {[%clk 0:02:57.2]} 10... c6 {[%clk 0:02:55.6]} 11. Qf3
{[%clk 0:02:57.3]} 11... Re8 {[%clk 0:02:55]} 12. Bf4 {[%clk 0:02:56.5]} 12...
Bd6 {[%clk 0:02:54]} 13. Rae1 {[%clk 0:02:51.3]} 13... Rxe1 {[%clk 0:02:50]} 14.
Rxe1 {[%clk 0:02:51.3]} 14... Be6 {[%clk 0:02:47.4]} 15. b3 {[%clk 0:02:48.9]}
15... Bxf4 {[%clk 0:02:28]} 16. Qxf4 {[%clk 0:02:49.8]} 16... Qa5 {[%clk
0:02:20.8]} 17. Qd2 {[%clk 0:02:36]} 17... h6 {[%clk 0:02:16.1]} 18. Ne4 {[%clk
0:02:22.1]} 18... Qxd2 {[%clk 0:02:13.9]} 19. Nxd2 {[%clk 0:02:23]} 19... Kf8
{[%clk 0:02:12.7]} 20. c4 {[%clk 0:01:57.7]} 20... a5 {[%clk 0:02:08.1]} 21.
cxd5 {[%clk 0:01:52.9]} 21... cxd5 {[%clk 0:02:09]} 22. Nf3 {[%clk 0:01:53.1]}
22... a4 {[%clk 0:02:07.1]} 23. Nd4 {[%clk 0:01:50.3]} 23... axb3 {[%clk
0:02:04.8]} 24. axb3 {[%clk 0:01:49.1]} 24... Bd7 {[%clk 0:02:01.3]} 25. f3
{[%clk 0:01:35.9]} 25... Ra2 {[%clk 0:01:56.9]} 26. Re2 {[%clk 0:01:24.6]} 26...
Ra1+ {[%clk 0:01:56]} 27. Kf2 {[%clk 0:01:24.8]} 27... Nh5 {[%clk 0:01:55.2]}
28. Ke3 {[%clk 0:01:20.3]} 28... Ke7 {[%clk 0:01:51.4]} 29. g4 {[%clk
0:01:09.4]} 29... Nf6 {[%clk 0:01:50.3]} 30. b4 {[%clk 0:01:03.9]} 30... Kd6
{[%clk 0:01:48.1]} 31. Rb2 {[%clk 0:00:54.6]} 31... Rh1 {[%clk 0:01:46.7]} 32.
b5 {[%clk 0:00:49.2]} 32... Rxh3 {[%clk 0:01:46.6]} 33. b6 {[%clk 0:00:31.1]}
33... Bxg4 {[%clk 0:01:30.5]} 34. b7 {[%clk 0:00:26.6]} 34... Nd7 {[%clk
0:01:29.2]} 35. b8=Q+ {[%clk 0:00:22.6]} 35... Nxb8 {[%clk 0:01:28.8]} 36. Rxb8
{[%clk 0:00:23.5]} 36... g5 {[%clk 0:01:14.6]} 37. Rb6+ {[%clk 0:00:20.2]} 37...
Kd7 {[%clk 0:01:06.5]} 38. Kf2 {[%clk 0:00:14.9]} 38... Be6 {[%clk 0:01:02.9]}
39. Bf5 {[%clk 0:00:14.7]} 39... Bxf5 {[%clk 0:00:55.4]} 40. Nxf5 {[%clk
0:00:15.6]} 40... h5 {[%clk 0:00:55.9]} 41. Rd6+ {[%clk 0:00:14.2]} 41... Kc7
{[%clk 0:00:56.3]} 42. Rxd5 {[%clk 0:00:14.9]} 42... g4 {[%clk 0:00:56.7]} 43.
fxg4 {[%clk 0:00:08.3]} 43... hxg4 {[%clk 0:00:57.6]} 44. Kg2 {[%clk 0:00:08.5]}
44... Kc6 {[%clk 0:00:54.4]} 45. Rd4 {[%clk 0:00:06.4]} 45... Rf3 {[%clk
0:00:53.5]} 46. Nh4 {[%clk 0:00:05.9]} 46... Ra3 {[%clk 0:00:53.1]} 47. Rxg4
{[%clk 0:00:06.4]} 47... Kd5 {[%clk 0:00:53.6]} 48. Rf4 {[%clk 0:00:06.8]} 48...
Ke6 {[%clk 0:00:54.2]} 49. Nf3 {[%clk 0:00:06.8]} 49... f6 {[%clk 0:00:53.9]}
50. Rb4 {[%clk 0:00:06.9]} 50... Kf7 {[%clk 0:00:53.9]} 51. Kg3 {[%clk
0:00:07.4]} 51... Kg6 {[%clk 0:00:54.1]} 52. Kg4 {[%clk 0:00:07.8]} 52... Ra5
{[%clk 0:00:53.7]} 53. Nh4+ {[%clk 0:00:07.9]} 53... Kf7 {[%clk 0:00:54.3]} 54.
Rb7+ {[%clk 0:00:08.3]} 54... Ke6 {[%clk 0:00:54.4]} 55. Rb6+ {[%clk 0:00:08.9]}
55... Kf7 {[%clk 0:00:54.1]} 56. Nf5 {[%clk 0:00:08.5]} 56... Ra4+ {[%clk
0:00:54.3]} 57. Kf3 {[%clk 0:00:06.5]} 57... Ra3+ {[%clk 0:00:54]} 58. Ke4
{[%clk 0:00:06.1]} 58... Ra4+ {[%clk 0:00:54.7]} 59. Nd4 {[%clk 0:00:06]} 59...
Kg6 {[%clk 0:00:55.3]} 60. Rb8 {[%clk 0:00:05.6]} 60... Kf7 {[%clk 0:00:51.4]}
61. Kd5 {[%clk 0:00:05.6]} 61... Ra5+ {[%clk 0:00:51.1]} 62. Kd6 {[%clk
0:00:05.4]} 62... Ra6+ {[%clk 0:00:50.8]} 63. Nc6 {[%clk 0:00:05.6]} 63... Ra1
{[%clk 0:00:50.7]} 64. Rb7+ {[%clk 0:00:06.1]} 64... Kg6 {[%clk 0:00:50.9]} 65.
Ne7+ {[%clk 0:00:05.8]} 65... Kf7 {[%clk 0:00:50.9]} 66. Nd5+ {[%clk 0:00:06.1]}
66... Kg6 {[%clk 0:00:51.2]} 67. Rb2 {[%clk 0:00:04.9]} 67... Rd1 {[%clk
0:00:49.5]} 68. Rg2+ {[%clk 0:00:04.6]} 68... Kf5 {[%clk 0:00:49.3]} 69. Rf2+
{[%clk 0:00:05.5]} 69... Ke4 {[%clk 0:00:49.4]} 70. Ke6 {[%clk 0:00:04.4]} 70...
Rxd5 {[%clk 0:00:47.2]} 71. Re2+ {[%clk 0:00:03.5]} 71... Kf3 {[%clk 0:00:47.6]}
72. Kxd5 {[%clk 0:00:03.8]} 72... Kxe2 {[%clk 0:00:48.2]} 73. Ke6 {[%clk
0:00:04.4]} 73... f5 {[%clk 0:00:49]} 74. Kxf5 {[%clk 0:00:05.2]} 1/2-1/2

[Event "Late-Titled-Tuesday-Blitz-July-09-2024"]
[Site "Chess.com"]
[Date "2024.07.09"]
[Round "8"]
[White "Keaton87"]
[Black "David_George21"]
[Result "1-0"]
[WhiteElo "2654"]
[BlackElo "2480"]
[TimeControl "180+1"]
[EndTime "15:28:39 PDT"]
[Termination "Keaton87 won on time"]

1. d4 {[%clk 0:03:00.9]} 1... Nf6 {[%clk 0:02:58]} 2. Nf3 {[%clk 0:03:00.8]}
2... e6 {[%clk 0:02:57.5]} 3. Bg5 {[%clk 0:03:00.6]} 3... d5 {[%clk 0:02:54.7]}
4. e3 {[%clk 0:02:59.2]} 4... Nbd7 {[%clk 0:02:54.3]} 5. Nbd2 {[%clk 0:02:59.3]}
5... h6 {[%clk 0:02:53.6]} 6. Bh4 {[%clk 0:02:58.8]} 6... c5 {[%clk 0:02:53.9]}
7. c3 {[%clk 0:02:58.9]} 7... Bd6 {[%clk 0:02:52]} 8. Bd3 {[%clk 0:02:56.7]}
8... O-O {[%clk 0:02:51.7]} 9. O-O {[%clk 0:02:56.8]} 9... Qc7 {[%clk
0:02:51.5]} 10. c4 {[%clk 0:02:49.3]} 10... cxd4 {[%clk 0:02:46.2]} 11. Nxd4
{[%clk 0:02:47.5]} 11... Bxh2+ {[%clk 0:02:43.6]} 12. Kh1 {[%clk 0:02:47.9]}
12... Be5 {[%clk 0:02:21.5]} 13. Rc1 {[%clk 0:02:31.2]} 13... Qb8 {[%clk
0:02:11.4]} 14. f4 {[%clk 0:02:23.7]} 14... Bd6 {[%clk 0:01:54.6]} 15. cxd5
{[%clk 0:02:13.9]} 15... Nxd5 {[%clk 0:01:55.5]} 16. Qe2 {[%clk 0:02:13.4]}
16... e5 {[%clk 0:01:41.6]} 17. Nf5 {[%clk 0:02:11.2]} 17... exf4 {[%clk
0:01:41.2]} 18. Ne4 {[%clk 0:02:02.3]} 18... Be5 {[%clk 0:01:32.6]} 19. Bc4
{[%clk 0:02:00.3]} 19... N7b6 {[%clk 0:01:25.6]} 20. Ne7+ {[%clk 0:01:50.2]}
20... Nxe7 {[%clk 0:01:21]} 21. Bxe7 {[%clk 0:01:51.1]} 21... Re8 {[%clk
0:01:17.2]} 22. exf4 {[%clk 0:01:36.1]} 22... Bxf4 {[%clk 0:01:08]} 23. Rxf4
{[%clk 0:01:08.1]} 23... Qxf4 {[%clk 0:01:08.9]} 24. Rf1 {[%clk 0:01:08]} 24...
Bg4 {[%clk 0:00:32.3]} 25. Qd3 {[%clk 0:00:40.9]} 25... Qe5 {[%clk 0:00:12.3]}
26. Bxf7+ {[%clk 0:00:40.7]} 26... Kh8 {[%clk 0:00:11.7]} 27. Nf6 {[%clk
0:00:34.5]} 27... Bf5 {[%clk 0:00:03.7]} 28. Rxf5 {[%clk 0:00:34]} 28... Qxe7
{[%clk 0:00:04]} 29. Rf1 {[%clk 0:00:26.8]} 29... gxf6 {[%clk 0:00:03.9]} 30.
Qg6 {[%clk 0:00:27.5]} 30... Qf8 {[%clk 0:00:01.3]} 31. Rxf6 {[%clk 0:00:22.4]}
31... Qg7 {[%clk 0:00:01.5]} 32. Bxe8 {[%clk 0:00:23.1]} 32... Qxg6 {[%clk
0:00:01]} 33. Bxg6 {[%clk 0:00:24]} 33... Kg7 {[%clk 0:00:01]} 34. Rd6 {[%clk
0:00:21.7]} 34... Rc8 {[%clk 0:00:01.7]} 35. Be4 {[%clk 0:00:21.5]} 35... Rc1+
{[%clk 0:00:02.6]} 36. Kh2 {[%clk 0:00:21.3]} 36... Ra1 {[%clk 0:00:03.5]} 37.
a3 {[%clk 0:00:21.2]} 37... Ra2 {[%clk 0:00:03.4]} 38. Rd2 {[%clk 0:00:17.4]}
38... Nc4 {[%clk 0:00:03.3]} 39. Rd7+ {[%clk 0:00:17.2]} 39... Kf6 {[%clk
0:00:03.8]} 40. Rxb7 {[%clk 0:00:17.4]} 40... Rxb2 {[%clk 0:00:04.2]} 41. Rxa7
{[%clk 0:00:17.6]} 41... Ra2 {[%clk 0:00:04.7]} 42. Bd5 {[%clk 0:00:17.6]} 42...
Rxa3 {[%clk 0:00:05]} 43. Rf7+ {[%clk 0:00:16.9]} 43... Kg5 {[%clk 0:00:05.2]}
44. Bxc4 {[%clk 0:00:16.3]} 44... Ra4 {[%clk 0:00:05.8]} 45. Bd5 {[%clk
0:00:14.6]} 45... Ra5 {[%clk 0:00:05.7]} 46. Bf3 {[%clk 0:00:14.3]} 46... h5
{[%clk 0:00:05.4]} 47. Rd7 {[%clk 0:00:14.1]} 47... Ra4 {[%clk 0:00:02.7]} 48.
Rd5+ {[%clk 0:00:13.8]} 48... Kf6 {[%clk 0:00:02.7]} 49. Rxh5 {[%clk 0:00:13.4]}
49... Kg6 {[%clk 0:00:03.2]} 50. Rb5 {[%clk 0:00:13.2]} 50... Ra3 {[%clk
0:00:03.5]} 51. Rc5 {[%clk 0:00:13.4]} 51... Re3 {[%clk 0:00:02.6]} 52. Kg3
{[%clk 0:00:13.6]} 52... Ra3 {[%clk 0:00:01.9]} 53. Kf4 {[%clk 0:00:13.3]} 53...
Ra4+ {[%clk 0:00:02.3]} 54. Be4+ {[%clk 0:00:13.7]} 54... Kf6 {[%clk 0:00:02.7]}
55. g4 {[%clk 0:00:14.1]} 55... Ra1 {[%clk 0:00:02.4]} 56. g5+ {[%clk
0:00:14.5]} 56... Kg7 {[%clk 0:00:01.9]} 57. Ke5 {[%clk 0:00:12.7]} 57... Rf1
{[%clk 0:00:01.2]} 58. Rc7+ {[%clk 0:00:12.5]} 58... Kg8 {[%clk 0:00:01.7]} 59.
Bf5 {[%clk 0:00:11.9]} 1-0